Cogmind - Beta 15 @@@ ROGUE MODE // 2025.09.01 @ 19:05:20 Player: LaserPappa Result: Destroyed by Y-45 Defender with Heavy Assault Rifle Performance ------------- Evolutions (1) 500 Regions Visited (4) 800 Robots Destroyed (15) 75 Value Destroyed (532) 532 Prototype IDs (0) 0 Alien Tech Used (0) 0 Bonus (0) 0 TOTAL SCORE: 1907 Bonus ------- None Cogmind --------- Core Integrity 0/400 Matter 77/300 Energy 100/100 System Corruption 0% Temperature Cool (0) Movement Treading (160) Location -9/Storage Parts ------- > --- POWER (2) -------- (None) > --- PROPULSION (2) --- Light Treads > --- UTILITY (3) ------ (None) > --- WEAPON (2) ------- (None) > --- INVENTORY (5) ---- Weight Redist. System Peak State ------------ > --- POWER ------------ Ion Engine > --- PROPULSION ------- Flight Unit Flight Unit > --- UTILITY ---------- Weight Redist. System Core Shielding Medium Armor Plating > --- WEAPON ----------- Mini Grenade Launcher > --- INVENTORY -------- Light Treads [Rating: 10] Favorites ----------- Power Ion Engine Engine Ion Engine Propulsion Light Treads Treads Light Treads Flight Unit Flight Unit Utility Core Shielding Device Weight Redist. System Protection Core Shielding Weapon Light Assault Rifle Ballistic Gun Light Assault Rifle Ballistic Cannon Improved Light Cannon Launcher Rocket Launcher Build | -11 -10 -10 -9 -9 ------- Run | Yrd Mat Min Mat Sto Slots Evolved 2 | . . . 2 . Power 1 | . . . 1 . Propulsion . | . . . . . Utility 1 | . . . 1 . Weapon . | . . . . . Parts Attached 14 | 4 1 2 5 2 Power 2 | 1 . . 1 . Engine 2 | 1 . . 1 . Core . | . . . . . Reactor . | . . . . . Propulsion 4 | 2 . . 2 . Treads 2 | 2 . . . . Leg . | . . . . . Wheel . | . . . . . Hover . | . . . . . Flight 2 | . . . 2 . Utility 3 | . 1 . 2 . Device 1 | . . . 1 . Storage . | . . . . . Processor . | . . . . . Hackware . | . . . . . Protection 2 | . 1 . 1 . Artifact . | . . . . . Weapon 5 | 1 . 2 . 2 Energy Gun . | . . . . . Energy Cannon . | . . . . . Ballistic Gun 2 | 1 . 1 . . Ballistic Cannon 1 | . . . . 1 Launcher 2 | . . 1 . 1 Special Weapon . | . . . . . Impact Weapon . | . . . . . Slashing Weapon . | . . . . . Piercing Weapon . | . . . . . Special Melee Weapon . | . . . . . Unidentified Prototypes . | . . . . . Parts Lost 12 | . . 3 2 7 Power 2 | . . 1 . 1 Propulsion 3 | . . . 1 2 Utility 2 | . . . . 2 Weapon 5 | . . 2 1 2 Highest Loss Streak 4 | . . 3 2 4 To Critical Strikes . | . . . . . Average Backups 2 | . . 3 3 1 Power . | . . . . . Propulsion 1 | . . 1 1 . Utility . | . . . . . Weapon . | . . . . . Tool/Special . | . . . . . Unused Backups . | . . . . . Power . | . . . . . Propulsion . | . . . . . Utility . | . . . . . Weapon . | . . . . . Tool/Special . | . . . . . Average Slot Usage (%) 64 | . 63 82 49 38 Engine 9 | . 14 13 1 4 Treads 20 | . 28 28 20 . Flight 1 | . . . 2 7 Device 1 | . . . 1 7 Protection 13 | . 6 14 14 13 Ballistic Gun 13 | . 14 25 . . Launcher 3 | . . . 10 5 Peak Build Rating 10 | 4 5 6 8 10 Average Rating 5 | 3 4 5 5 5 On Entrance 4 | . 4 5 5 8 Naked Turns 12 | . . . . 12 Heaviest Build 14 | 6 7 10 13 14 Greatest Support 46 | 40 40 40 46 20 Greatest Overweight (x) 1 | 1 . . . 1 Average Overweight (x) . | . . . . . Largest Inventory Capacity 5 | 5 5 5 5 5 Average Capacity 5 | 5 5 5 5 5 Most Carried 4 | . . 4 4 2 Average Carried 2 | . . 3 3 1 Final Capacity 5 | 5 5 5 5 5 Final Carried 3 | . . 3 1 1 Class Distribution -------------------- 100% | Mutant Dominant Class ---------------- Mutant | -10/Materials Mutant | -10/Mines Mutant | -9/Materials Mutant | -9/Storage Resources | -11 -10 -10 -9 -9 ----------- Run | Yrd Mat Min Mat Sto Matter Collected 355 | 126 . 219 . 10 Remotely . | . . . . . Salvage Created 400 | . . 264 66 70 Parts 20 | . . 13 2 5 Haulers Intercepted . | . . . . . Recyclers Shooed . | . . . . . Parts Field Recycled . | . . . . . Retrieved Matter . | . . . . . Parts Self-Destructed . | . . . . . Prevented . | . . . . . Kills | -11 -10 -10 -9 -9 ------- Run | Yrd Mat Min Mat Sto Combat Hostiles Destroyed 15 | . . 9 3 3 Guns 7 | . . 7 . . AOE 8 | . . 2 3 3 Classes Destroyed 3 | . . 2 . 1 Swarmer 3 | . . 3 . . Grunt 10 | . . 6 3 1 Sentry 2 | . . . . 2 Best Kill Streak 3 | . . 3 3 2 Combat Bots Only 3 | . . 3 3 2 Max Kills in Single Turn 2 | . . 1 2 1 Gunslinging . | . . . . . Exploded 2 | . . 1 2 1 Melee . | . . . . . Uniques/NPCs Destroyed . | . . . . . Combat | -11 -10 -10 -9 -9 -------- Run | Yrd Mat Min Mat Sto Hostile Shots Fired 128 | . . 52 3 73 Missed 32 | . . 11 2 19 Hits 96 | . . 41 1 54 Projectile 96 | . . 41 1 54 Critical Strikes 3 | . . . . 3 Damage Taken 1538 | . . 602 67 869 Core 540 | . . 130 2 408 Absorbed by Shields . | . . . . . Redirected to Shielding 50 | . . 26 . 24 Core Remaining (%) 74 | 100 . 48 . . Volleys Fired 67 | . 3 37 5 22 Largest 2 | . 1 2 1 1 Hottest 40 | . 20 40 33 33 Shots Fired 89 | . 3 59 5 22 Gun 58 | . 3 55 . . Cannon 8 | . . . . 8 Launcher 23 | . . 4 5 14 Special . | . . . . . Kinetic 66 | . 3 55 . 8 Thermal . | . . . . . Explosive 23 | . . 4 5 14 Electromagnetic . | . . . . . Robot Hit Streak 11 | . 1 8 4 11 Robot Miss Streak 3 | . 1 3 1 2 Penetration Max . | . . . . . Secondary Targets . | . . . . . Shots Hit Robots 55 | . 2 35 2 16 Core Hits 39 | . 1 19 4 15 Critical Kills . | . . . . . Critical Parts Destroyed . | . . . . . Critical Strikes . | . . . . . Melee Attacks . | . . . . . Impact . | . . . . . Slashing . | . . . . . Piercing . | . . . . . Sneak Attacks . | . . . . . Combat Hostiles . | . . . . . Follow-up Attacks . | . . . . . Damage Inflicted 1294 | . 18 427 230 619 Guns 276 | . 18 258 . . Cannons 78 | . . . . 78 Explosions 904 | . . 169 230 505 Melee . | . . . . . Ramming 36 | . . . . 36 Kinetic 354 | . 18 258 . 78 Thermal . | . . . . . Explosive 904 | . . 169 230 505 Electromagnetic . | . . . . . Impact . | . . . . . Slashing . | . . . . . Piercing . | . . . . . Highest Corruption . | . . . . . Average Corruption . | . . . . . Corruption Purged . | . . . . . Corruption Blocked . | . . . . . Overload Shots . | . . . . . Overflow Damage 24 | . . . 19 5 Projectiles . | . . . . . Explosions 24 | . . . 19 5 Melee . | . . . . . Knockbacks . | . . . . . Impact . | . . . . . Kinetic . | . . . . . Secondary . | . . . . . Self-Inflicted Damage 206 | . . 68 56 82 Shots 8 | . . 3 3 2 Rammed 16 | . . . . 16 Targets Rammed 16 | . . . . 16 Kicked . | . . . . . Crushed . | . . . . . Highest Temperature 37 | . . 37 . 23 Average Temperature 12 | . . 12 . 10 Received Heat Transfer 567 | . . 252 9 306 Siege Activations . | . . . . . Martial Activations . | . . . . . Shielding Activations . | . . . . . Robots Disrupted . | . . . . . Combat Hostiles . | . . . . . Robots Corrupted . | . . . . . Combat Hostiles . | . . . . . Parts Fried . | . . . . . Impact Corruptions . | . . . . . Robots Melted . | . . . . . Combat Hostiles . | . . . . . Parts Melted . | . . . . . Heat Transferred . | . . . . . Parts Sabotaged . | . . . . . Parts Stolen . | . . . . . Parts Stripped . | . . . . . Power Chain Reactions . | . . . . . Alert | -11 -10 -10 -9 -9 ------- Run | Yrd Mat Min Mat Sto Maximum Alert Level . | . . . . . Low Security (%) 100 | 100 100 100 100 100 Level 1 . | . . . . . Level 2 . | . . . . . Level 3 . | . . . . . Level 4 . | . . . . . Level 5 . | . . . . . High Security . | . . . . . Max Security . | . . . . . Peak Influence 125 | . . 90 122 125 Initial 22 | . . . 22 16 Average 40 | . . 27 61 85 Influence Increases 637 | . . 247 130 260 Destroy 0b10 Robot/C 300 | . . 180 60 60 Destroy 0b10 Robot/NC 10 | . . . . 10 Destroy Leader 70 | . . 40 10 20 Disable Machine 30 | . . . 30 . Destroy Structure 122 | . . 27 30 65 Partial Spotted 30 | . . . . 30 Lose Combat Pursuer 75 | . . . . 75 Influence Decreases 551 | . . 188 149 214 Entered New Map 61 | . . . 37 24 Time Decay 390 | . . 178 92 120 Lost Part 100 | . . 10 20 70 Squads Dispatched 4 | . 1 . 1 2 Investigation 1 | . 1 . . . Extermination . | . . . . . Reinforcement 2 | . . . 1 1 Assault . | . . . . . Garrison 1 | . . . . 1 Intercept . | . . . . . Searches Triggered . | . . . . . Construction Impeded . | . . . . . Haulers Reinforced . | . . . . . Active Scanning Responses . | . . . . . Cargo Convoy Interrupts . | . . . . . Stealth | -11 -10 -10 -9 -9 --------- Run | Yrd Mat Min Mat Sto Distress Signals 2 | . . . 1 1 Communications Jammed . | . . . . . Distress Signals . | . . . . . Times Spotted 30 | . 4 8 7 11 Peak Tracking Total 5 | . 3 2 3 5 Tactical Retreats 4 | . . . . 4 Traps | -11 -10 -10 -9 -9 ------- Run | Yrd Mat Min Mat Sto Traps Triggered 1 | . 1 . . . Indirectly . | . . . . . Trap Hack Attempts . | . . . . . Triggered . | . . . . . Disarmed . | . . . . . Reprogrammed . | . . . . . Reused . | . . . . . Traps Extracted . | . . . . . Installed . | . . . . . Triggered . | . . . . . Machines | -11 -10 -10 -9 -9 ---------- Run | Yrd Mat Min Mat Sto Machines Disabled 2 | . . . 2 . Max in Single Turn 1 | . . . 1 . Machines Repaired . | . . . . . Machines Dismantled . | . . . . . Machines Sabotaged . | . . . . . Overloaded Fab Kills . | . . . . . Hacking | -11 -10 -10 -9 -9 --------- Run | Yrd Mat Min Mat Sto Machines Accessed 1 | . . . . 1 Terminals . | . . . . . Fabricators . | . . . . . Repair Stations . | . . . . . Recycling Units . | . . . . . Scanalyzers . | . . . . . Garrison Access 1 | . . . . 1 Total Hacks 2 | . . . . 2 Successful . | . . . . . Failed 2 | . . . . 2 Catastrophic . | . . . . . Database Lockouts . | . . . . . Manual . | . . . . . Terminals . | . . . . . Fabricators . | . . . . . Repair Stations . | . . . . . Recycling Units . | . . . . . Scanalyzers . | . . . . . Garrison Access 2 | . . . . 2 Terminal Hacks . | . . . . . Fabricator Hacks . | . . . . . Repair Station Hacks . | . . . . . Recycling Unit Hacks . | . . . . . Scanalyzer . | . . . . . Garrison Access Hacks . | . . . . . Unauthorized Hacks . | . . . . . Terminals . | . . . . . Fabricators . | . . . . . Repair Stations . | . . . . . Recycling Units . | . . . . . Scanalyzers . | . . . . . Garrison Access . | . . . . . Data Cores Recovered . | . . . . . Used . | . . . . . Hacking Detections 1 | . . . . 1 Full Trace Events . | . . . . . Feedback Events . | . . . . . Feedback Blocked . | . . . . . Robot Schematics Acquired . | . . . . . Robots Built . | . . . . . Authchips . | . . . . . Time . | . . . . . Total Robot Build Rating . | . . . . . Part Schematics Acquired . | . . . . . Parts Built . | . . . . . Authchips . | . . . . . Time . | . . . . . Total Part Build Rating . | . . . . . Parts Repaired . | . . . . . Time . | . . . . . Parts Recycled . | . . . . . Recycled Matter . | . . . . . Retrieved Matter . | . . . . . Retrieved Components . | . . . . . Parts Scanalyzed . | . . . . . Part Schematics Acquired . | . . . . . Parts Damaged . | . . . . . Bothacking | -11 -10 -10 -9 -9 ------------ Run | Yrd Mat Min Mat Sto Used RIF Installer . | . . . . . Robots Hacked . | . . . . . Non-combat . | . . . . . Combat . | . . . . . Robot Hacks Applied . | . . . . . Relay Couplers Released . | . . . . . Fabnet Peak Effective % . | . . . . . Robots Rewired . | . . . . . Allies Hacked . | . . . . . Hacks Repelled . | . . . . . Allies | -11 -10 -10 -9 -9 -------- Run | Yrd Mat Min Mat Sto Total Allies . | . . . . . Largest Group . | . . . . . Highest-Rated Group . | . . . . . Highest-Rated Ally . | . . . . . Total Orders . | . . . . . Ally Attacks . | . . . . . Total Damage . | . . . . . Kills . | . . . . . Allies Corrupted . | . . . . . Allies Melted . | . . . . . Intel | -11 -10 -10 -9 -9 ------- Run | Yrd Mat Min Mat Sto Active Infowar (turns) . | . . . . . Robot Analysis Total . | . . . . . Derelict Logs Recovered . | . . . . . Drone Launches . | . . . . . Drone Recoveries . | . . . . . Exploration | -11 -10 -10 -9 -9 ------------- Run | Yrd Mat Min Mat Sto Turns Passed 1224 | 48 141 577 208 250 Spaces Moved 949 | 30 84 303 150 382 Core 203 | 8 . . . 195 Treads 517 | 22 84 303 107 1 Legs . | . . . . . Wheels . | . . . . . Hover . | . . . . . Flight 229 | . . . 43 186 Fastest Speed 37 | 50 160 160 37 37 Average Speed 107 | 142 160 160 124 45 Slowest Speed 160 | 160 160 160 160 160 Overloaded Moves . | . . . . . Propulsion Burnouts . | . . . . . Robots Hopped 2 | . . . 1 1 Potential Cave-ins . | . . . . . Cave-ins Triggered . | . . . . . Exploration Rate (%) 29 | 3 18 64 14 47 Regions Visited 4 Branch Regions 2 Pre-discovered Areas . | . . . . . Known Exits Taken . | . . . . . Unknown Exits Taken 4 | 1 1 1 1 . Scrap Searched 2 | . . 2 . . Spaces Dug 7 | . . . 7 . Terrain Destroyed 155 | . . 43 31 81 Melee . | . . . . . Projectile 1 | . . . . 1 AOE 154 | . . 43 31 80 Terrain Rammed . | . . . . . Walls Destroyed . | . . . . . Machines Disabled . | . . . . . Actions | -11 -10 -10 -9 -9 --------- Run | Yrd Mat Min Mat Sto Total 1064 | 33 88 347 164 432 Wait 12 | . 1 1 2 8 Move 941 | 29 83 302 147 380 Hop 2 | . . . 1 1 Pick Up 5 | . . 5 . . Fast Attach 10 | 4 1 . 3 2 Attach 6 | . . 2 3 1 Detach 3 | . . . 2 1 Swap . | . . . . . Drop 1 | . . . 1 . Fire 67 | . 3 37 5 22 Melee . | . . . . . Ram 14 | . . . . 14 Kick . | . . . . . Crush 2 | . . . . 2 Escape Stasis . | . . . . . Rewire 1 | . . . . 1 Trap . | . . . . . Miscellaneous . | . . . . . Route ------- -11/Scrapyard -10/Materials -10/Mines -9/Materials -9/Storage History --------- Turn | Location | Event 15 | -11/Scrapyard | Discovered new exit (range 14) 49 | -11/Scrapyard | Entered Materials 50 | -10/Materials | Met a group of wandering Federalists 158 | -10/Materials | Discovered new exit (range 16) 190 | -10/Materials | Entered Mines 313 | -10/Mines | Build established: Mutant 509 | -10/Mines | Received a Rocket Launcher from a helpful Derelict 704 | -10/Mines | Discovered new exit (range 7) 741 | -10/Mines | Core integrity fell below 50% 767 | -10/Mines | Entered Materials 767 | -9/Materials | Evolved 2 slots: Power x1, Utility x1 770 | -9/Materials | Lost 3 parts (1p2w) 965 | -9/Materials | Discovered new exit (range 5) 975 | -9/Materials | Entered Storage 1097 | -9/Storage | Lost 4 parts (1p2n1u) 1189 | -9/Storage | Garrison activated, responded to threat 1211 | -9/Storage | Core integrity fell below 50% 1217 | -9/Storage | Core integrity fell below 20% 1225 | -9/Storage | Destroyed by Y-45 Defender with Heavy Assault Rifle Last Messages --------------- T-07 Excavator destroyed. Acquired Imp. Light Cannon. Core Shielding destroyed. Component Storage disabled. Y-45 Defender calls for garrison reinforcements. ALERT: Activating Garrison Access S001. Critical hit (Burn: +37). Slammed into Y-45 Defender. U-05 Engineer builds a Door. Slammed into Y-45 Defender. Imp. Light Cannon destroyed. Slammed into Y-45 Defender. Acquired 6 matter. Slammed into Y-45 Defender. Acquired 4 matter. Slammed into Y-45 Defender. Critical hit (Burn: +37). Slammed into Y-45 Defender. U-05 Engineer lays Concrete. Slammed into Y-45 Defender. Map ----- +----------------------------------------------------+ | ?????????????????????????????????????????????????? | | ?????????????????????????????????????????????????? | | ?????????????????????????????????????????????????? | | ?????????????????????????????????????????????????? | | ???????????????????????????????????????????????### | | ???????????????????????????????????????????????# | | ?????????????????????????????????????########??# | | ????????????????????????????########?#!!!!#T##?# | | ????????????????????????????# ### " ### | | ????????????????????????????# # !!!!# ## | | ??????????????????????####### # ### | | ??????????????????????# #### ### # | | ??????????????????????# | | ??????????????????????+ | | ??????????????????????# | | ??????????????????????# ####### #### ### | | ??????????????????????## ## ###### # ### ##?# | | ?????????????????####### # ####### | | ?????????????????# # # #####?# + | | ?????????????????# # # ####?#T # | | ?????????????????#""" # # """"" """#?##" ## | | ?????????????????#""" ; + """"" ] G"#??#[]?# | | ?????????????????#""" # g# """"" """#??#[??# | | ?????????????????#""" # + ####??#???# | | ?????????????????#"" # Y# #?#???????# | | ?????????????????# /Y@ #######+###?# ####??# | | ?????????????????# ###;##/#####??# #???? ?# | | ?????????????????##?# #??# #???" ?# | | ????????????????????# | #??# #???T """ # | | ????????????????????# ! #??# #???" """ # | | ????????????????????# [ #??# #??# """ + | | ????????????????????# ! #??# #??# """ # | | ????????????????????# % #??# #??? """ # | | ???????????????????# % #??# #??? ] ?# | | ???????????????????## u u #??# #???? ?# | | ????????????????????## #+######??# #?########??# | | ?????????????????????# # ###?????# #?# ?# | | ?????????????????????### ##??????# #?# ?# | | ??????????????????????## ##??????# #?# # | | ???????????????????????# #??????## ### # | | ???????????????????????# #??????# ## + | | ???????????????????????# #??????# T ## # | | ?????????????????????### ##?????# ## # | | ?????????????????????# ##?????## ### ?# | | ?????????????????????## #??????# #?#########?# | | ?????????????????????## % #??????# #???????????# | | ?????????????????????# # #??????# #???????????# | | ?????????????????????# # #??????# #???????????# | | ??????????##?????????### ##??????# #???????????# | | ??????????? ??????#### ######### #???????????# | +----------------------------------------------------+ Best States ------------- Heat Dissipation 28 Energy Generation 10 Energy Capacity 250 Matter Stores 300 Matter Capacity 300 Sight Range 16 Terrain Scan Density 10 Additional Mass Support 6 Armor Coverage 225 Core Shielding 20 Evasion (%) 62 Recoil Reduction 2 Item Schematics ----------------- None Robot Schematics ------------------ None Fabricated ------------ Nothing Repaired ---------- Nothing Alien Tech Used ----------------- None Achievements -------------- None Challenges ------------ None Game ------ Seed ClaymoresDisassembledMace Manual? 0 Play Time 00:20:41 Cumulative 8.5 hours Start 2025.08.29 @ 23:29:32 End 2025.09.01 @ 19:05:20 Sessions 3 Manual Loads 0 Difficulty Rogue Special Mode None Game No. 14 Rogue 7 Adventurer 0 Explorer 7 Win Type - Total 0 Types 0/0/0/0/0/0/0/0/0/0 Lore% 6 Gallery% 8 Achievement% 9 Wizard Run 0 Options --------- Layout 0 ASCII 1 Keyboard 0 Movement Numpad Keybinds 0 Fullscreen 2 Font 24/Smallcaps Map View 76x50 Zoom Use 0% Tactical HUD 0 Map Filters NONE Filters NONE Steam 1 RUN: d60d89c4-4a2d-4964-a9ec-483ff46124e5